bitfinex-derivatives/quotes_BTCF0:USTF0_20241029
["timestamp","ask_amount","ask_price","bid_price","bid_amount"]
[1730167442129,0.091914,70453.0,70452.0,0.21512673]
[1730167442330,0.063925,70441.0,70437.0,0.2049744]
[1730167442533,0.0697,70452.0,70439.0,0.3608]
[1730167442835,0.063917,70449.0,70448.0,0.2140473]
[1730167443031,0.063917,70449.0,70433.0,0.5748473]
[1730167443032,0.063931,70434.0,70433.0,0.3608]
[1730167443231,0.3608,70450.0,70437.0,0.00072]
[1730167443428,0.063925,70440.0,70439.0,0.2049744]
[1730167443838,0.3608,70450.0,70439.0,0.2049744]
[1730167443839,0.3608,70450.0,70439.0,0.6308544]
[1730167444026,0.028,70453.0,70452.0,0.001]
[1730167444332,0.028,70453.0,70452.0,0.21379863]
[1730167445035,0.014,70453.0,70452.0,0.21379863]
[1730167445942,0.011,70453.0,70452.0,0.21379863]
[1730167446237,0.011,70453.0,70452.0,0.63959863]
[1730167447138,0.063899,70469.0,70452.0,1.15175244]
[1730167447338,0.3608,70477.0,70468.0,0.2049744]
[1730167447524,0.3608,70477.0,70452.0,0.42595244]
[1730167447525,0.3608,70477.0,70462.0,0.2049744]
[1730167447726,0.3608,70477.0,70469.0,0.21271207]
[1730167447935,0.063901,70467.0,70466.0,0.21191329]
[1730167448225,0.063896,70473.0,70462.0,0.2049744]
[1730167448432,0.3608,70477.0,70472.0,0.2049744]
[1730167448637,0.014,70477.0,70472.0,0.5657744]
[1730167448939,0.014,70477.0,70473.0,0.21342287]
[1730167449140,0.063893,70476.0,70473.0,0.21342287]
[1730167449335,0.063894,70474.0,70473.0,0.21342287]
[1730167449536,0.36292898,70484.0,70473.0,0.21342287]
[1730167449737,0.06389,70479.0,70473.0,0.21342287]
[1730167449938,0.00212898,70484.0,70473.0,0.21342287]
[1730167449939,0.063891,70478.0,70473.0,0.21342287]
[1730167450237,0.014,70476.0,70473.0,0.21442287]
[1730167450428,0.063894,70474.0,70473.0,0.21442287]
[1730167451439,0.014,70476.0,70473.0,0.57622287]
[1730167451634,0.063894,70474.0,70473.0,0.57622287]
[1730167451945,0.063894,70474.0,70473.0,0.57522287]
[1730167452151,0.012,70474.0,70473.0,0.57622287]
[1730167452530,0.012,70474.0,70473.0,0.57522287]
[1730167452732,0.012,70474.0,70473.0,0.57622287]
[1730167453740,0.00212898,70484.0,70473.0,1.50687727]
[1730167454038,0.4324,70499.0,70483.0,0.5657744]
[1730167454039,0.063877,70494.0,70483.0,0.5657744]
[1730167454233,0.063876,70494.0,70493.0,0.2049744]
[1730167454433,0.063872,70499.0,70493.0,0.2049744]
[1730167454634,0.063874,70496.0,70495.0,0.3608]
[1730167455136,0.063874,70496.0,70495.0,0.57417037]
[1730167455836,0.063874,70496.0,70495.0,0.57617037]
[1730167455837,0.082874,70496.0,70495.0,0.57617037]
[1730167456243,0.019,70496.0,70495.0,0.57617037]
[1730167456635,0.082874,70496.0,70495.0,0.21537037]
[1730167457136,0.082874,70496.0,70495.0,0.002]
[1730167457532,0.2878484,70496.0,70495.0,0.002]
[1730167457842,0.082874,70496.0,70495.0,0.002]
[1730167458835,0.019,70496.0,70495.0,0.2140288]
[1730167459040,0.082874,70496.0,70495.0,0.2140288]
[1730167459239,0.2878484,70496.0,70495.0,0.002]
[1730167459437,0.7134084,70496.0,70495.0,0.002]
[1730167459657,0.6495344,70496.0,70477.0,0.5657744]
[1730167459849,0.3608,70491.0,70483.0,0.2049744]
[1730167460142,0.3608,70491.0,70483.0,0.4177728]
[1730167460351,0.3608,70491.0,70483.0,0.2049744]
[1730167460535,0.3608,70491.0,70484.0,0.2127984]
[1730167460848,0.063884,70485.0,70484.0,0.2127984]
[1730167461051,0.3638,70491.0,70484.0,0.2127984]
[1730167461353,0.3638,70491.0,70490.0,0.2049744]
[1730167461850,0.427679,70491.0,70490.0,0.2049744]
[1730167462551,0.063884,70485.0,70484.0,0.002]
[1730167462746,0.063884,70485.0,70482.0,0.16367065]
[1730167462747,0.063886,70484.0,70482.0,0.16367065]
[1730167462943,0.15669475,70483.0,70482.0,0.05652887]
[1730167463145,0.16965862,70483.0,70482.0,0.05652887]
[1730167463448,0.16965862,70483.0,70482.0,0.2688544]
[1730167463640,0.16965862,70483.0,70482.0,0.21232553]
[1730167463839,0.063899,70469.0,70464.0,0.3608]
[1730167464047,0.14224638,70469.0,70464.0,0.5657744]
[1730167464250,0.14224638,70469.0,70468.0,0.2149747]
[1730167464548,0.19316851,70469.0,70468.0,0.2149747]
[1730167464741,0.19316851,70469.0,70468.0,0.21284632]
[1730167464742,0.14224638,70469.0,70468.0,0.21284632]
[1730167465137,0.063903,70465.0,70464.0,0.2049744]
[1730167465342,0.14225038,70465.0,70464.0,0.2049744]
[1730167465545,0.14225038,70465.0,70464.0,0.41708882]
[1730167467168,0.14225038,70465.0,70464.0,0.21211442]
[1730167467653,0.063913,70453.0,70452.0,0.00212929]
[1730167467839,0.0986992,70453.0,70452.0,0.00212929]
[1730167468040,0.14230134,70453.0,70452.0,0.00212929]
[1730167468240,0.063916,70450.0,70449.0,0.3608]
[1730167468435,0.07838834,70450.0,70441.0,0.2049744]
[1730167468639,0.063918,70448.0,70447.0,0.21396556]
[1730167468841,0.063918,70448.0,70437.0,0.00212949]
[1730167468842,0.063923,70442.0,70441.0,0.21396556]
[1730167469046,0.063923,70442.0,70438.0,0.21219893]
[1730167469047,0.063926,70439.0,70438.0,0.21219893]
[1730167469236,0.063926,70439.0,70437.0,0.00212949]
[1730167469237,0.07838951,70439.0,70437.0,0.00212949]
[1730167469436,0.2049744,70438.0,70425.0,0.09684208]
[1730167469747,0.5443372,70441.0,70416.0,0.3608]
[1730167469748,0.063937,70427.0,70426.0,0.45226173]
[1730167469939,0.2049744,70440.0,70426.0,0.45226173]
[1730167470139,0.2049744,70440.0,70422.0,0.5657744]
[1730167470140,0.063931,70434.0,70431.0,0.08357265]
[1730167470351,0.063932,70433.0,70432.0,0.10827442]
[1730167470749,0.063932,70433.0,70432.0,0.52573793]
[1730167471749,0.063932,70433.0,70432.0,0.52673793]
[1730167471750,0.077932,70433.0,70432.0,0.52673793]
[1730167471950,0.014,70433.0,70432.0,0.95265793]
[1730167472154,0.014,70434.0,70432.0,1.10358236]
[1730167472345,0.014,70434.0,70433.0,0.66476074]
[1730167472740,0.1835372,70441.0,70433.0,1.46506384]
[1730167472944,0.138803,70464.0,70440.0,0.5657744]
[1730167472945,0.063919,70447.0,70440.0,0.5657744]
[1730167473139,0.063919,70447.0,70446.0,0.5657744]
[1730167473340,0.063914,70453.0,70446.0,0.67404882]
[1730167473542,0.063914,70453.0,70452.0,0.2049744]
[1730167473745,0.063914,70453.0,70452.0,0.31322719]
[1730167473949,0.063914,70453.0,70452.0,0.52516273]
[1730167474357,0.063914,70453.0,70452.0,0.88596273]
[1730167474650,0.063914,70453.0,70452.0,0.10825279]
[1730167474651,0.081914,70453.0,70452.0,0.10825279]
[1730167474963,0.507714,70453.0,70449.0,0.05562584]
[1730167475143,0.063917,70449.0,70446.0,0.001]
[1730167475348,0.424719,70447.0,70445.0,0.05562747]
[1730167475553,0.424719,70447.0,70437.0,0.00212917]
[1730167475554,0.3608,70447.0,70444.0,0.05561277]
[1730167475756,0.063921,70445.0,70444.0,0.05561277]
[1730167475950,0.063926,70439.0,70438.0,0.2820942]
[1730167476146,0.3608,70447.0,70437.0,0.07163601]
[1730167476354,0.063927,70438.0,70437.0,0.00212917]
[1730167476654,0.063927,70438.0,70437.0,0.21471653]
[1730167477354,0.063921,70445.0,70437.0,0.21471653]
[1730167477551,0.3608,70447.0,70444.0,0.2049744]
[1730167477853,0.063921,70445.0,70444.0,0.2049744]
[1730167478353,0.063921,70445.0,70444.0,0.41764473]
[1730167478555,0.063921,70445.0,70437.0,0.00412917]
[1730167478556,0.063923,70442.0,70437.0,0.00412917]
[1730167478745,0.2689014,70438.0,70437.0,0.00212917]
[1730167479057,0.063935,70429.0,70428.0,0.2049744]
[1730167479261,0.3608,70439.0,70428.0,0.2049744]
[1730167479557,0.063935,70429.0,70428.0,0.21185149]
[1730167479748,0.063939,70425.0,70424.0,0.3608]
[1730167479952,0.063942,70421.0,70413.0,0.05555117]
[1730167480253,0.063951,70412.0,70409.0,0.05555117]
[1730167480444,0.063951,70412.0,70408.0,0.05555117]
[1730167480651,0.063951,70412.0,70411.0,0.21436393]
[1730167481148,0.424751,70412.0,70405.0,0.3608]
[1730167481349,0.063956,70406.0,70405.0,0.3608]
[1730167481654,0.063956,70406.0,70398.0,0.07622124]
[1730167481655,0.063964,70397.0,70395.0,0.05555117]
[1730167481957,0.063964,70397.0,70396.0,0.57315382]
[1730167483057,0.063964,70397.0,70396.0,0.21235382]
[1730167483359,0.063964,70397.0,70394.0,0.2049744]
[1730167483856,0.014,70406.0,70396.0,0.21213799]
[1730167484162,0.004,70397.0,70392.0,0.3608]
[1730167484364,0.077964,70397.0,70396.0,0.2049744]
[1730167484550,0.02,70397.0,70396.0,0.47280474]
[1730167484754,0.083964,70397.0,70396.0,0.47280474]
[1730167485052,0.083964,70397.0,70396.0,0.2049744]
[1730167485357,0.083964,70397.0,70396.0,0.21276998]
[1730167485753,0.063965,70396.0,70395.0,0.21276998]
[1730167486057,0.02,70397.0,70389.0,0.00213072]
[1730167486058,0.083964,70397.0,70396.0,0.2138962]
[1730167486251,0.063965,70396.0,70395.0,0.2138962]
[1730167486552,0.01,70397.0,70396.0,0.2138962]
[1730167486553,0.083964,70397.0,70396.0,0.2138962]
[1730167486755,0.063965,70396.0,70395.0,0.2138962]
[1730167487259,0.063971,70390.0,70379.0,0.05555117]
[1730167487463,0.063971,70390.0,70376.0,0.05555117]
[1730167487464,0.063982,70378.0,70376.0,0.05555117]
[1730167487653,0.063984,70375.0,70374.0,0.3608]
[1730167487960,0.063984,70375.0,70374.0,0.5657744]
[1730167488155,0.3608,70388.0,70374.0,0.77890911]
[1730167488356,0.3608,70388.0,70383.0,0.2049744]
[1730167488556,0.063976,70384.0,70383.0,0.2049744]
[1730167489652,0.3608,70388.0,70378.0,0.2049744]
[1730167489865,0.424773,70388.0,70376.0,0.0554514]
[1730167490049,0.424773,70388.0,70377.0,0.05542204]
[1730167490362,0.063981,70379.0,70378.0,0.05542204]
[1730167490665,0.063981,70379.0,70375.0,0.21321774]
[1730167490666,0.063983,70376.0,70375.0,0.05542204]
[1730167491053,0.063983,70376.0,70375.0,0.26997451]
[1730167491253,0.063983,70376.0,70375.0,0.214546]
[1730167491952,0.063979,70381.0,70375.0,0.32490287]
[1730167492162,0.063979,70381.0,70380.0,0.5657744]
[1730167492549,0.063979,70381.0,70380.0,0.77970177]
[1730167492754,0.063979,70381.0,70380.0,0.57472737]
[1730167493354,0.067979,70381.0,70380.0,0.57472737]
[1730167493560,0.071979,70381.0,70380.0,0.57472737]
[1730167494061,0.067979,70381.0,70380.0,0.57472737]
[1730167494251,0.071979,70381.0,70380.0,0.57472737]
[1730167494458,0.071979,70381.0,70380.0,0.21392737]
[1730167494659,0.498219,70381.0,70380.0,0.05552115]
[1730167494965,0.498219,70381.0,70375.0,0.05552115]
[1730167494966,0.063981,70379.0,70375.0,0.05552115]
[1730167495163,0.06398,70380.0,70367.0,0.06928384]
[1730167495164,0.063985,70374.0,70367.0,0.06928384]
[1730167495360,0.063986,70373.0,70372.0,0.05554263]
[1730167495659,0.063987,70372.0,70371.0,0.05554263]
[1730167495969,0.36152,70376.0,70363.0,0.2129678]
[1730167495970,0.3608,70376.0,70369.0,0.2049744]
[1730167496165,0.063984,70375.0,70374.0,0.2049744]
[1730167497472,0.063985,70374.0,70373.0,0.06928384]
[1730167498173,0.3608,70376.0,70373.0,0.10837778]
[1730167498358,0.063984,70375.0,70374.0,0.17784419]
[1730167498569,0.063984,70375.0,70374.0,0.38281859]
[1730167498876,0.063984,70375.0,70374.0,0.5269352]
[1730167499169,0.3608,70388.0,70374.0,0.5269352]
[1730167499359,0.3608,70388.0,70385.0,0.0694408]
[1730167499561,0.063969,70392.0,70386.0,0.10835626]
[1730167499768,0.063973,70387.0,70386.0,0.06943414]
[1730167500070,0.063973,70387.0,70386.0,0.10835488]
[1730167500255,0.063973,70387.0,70386.0,0.46915488]
[1730167501581,0.3608,70417.0,70387.0,0.4262]
[1730167501765,0.06396,70402.0,70401.0,0.05552693]
[1730167501966,0.063961,70401.0,70400.0,0.3608]
[1730167502160,0.063961,70401.0,70400.0,0.55241513]
[1730167502363,0.06607933,70416.0,70400.0,1.17194947]
[1730167502574,0.06607933,70416.0,70415.0,0.05551425]
[1730167502875,0.06607933,70416.0,70410.0,0.06939072]
[1730167502876,0.063952,70411.0,70410.0,0.06939072]
[1730167503174,0.063952,70410.0,70406.0,0.3608]
[1730167503482,0.063954,70408.0,70407.0,0.10230964]
[1730167503669,0.063954,70408.0,70400.0,0.001]
[1730167503670,0.6950084,70408.0,70400.0,0.001]
[1730167503859,0.063961,70401.0,70400.0,0.001]
[1730167504059,0.063969,70392.0,70391.0,0.3608]
[1730167504264,0.063969,70392.0,70391.0,0.49050263]
[1730167504573,0.15556,70409.0,70391.0,0.90745489]
[1730167504772,0.063965,70397.0,70396.0,0.2049744]
[1730167505079,0.014,70408.0,70397.0,0.21263913]
[1730167505080,0.063959,70403.0,70397.0,0.21263913]
[1730167505281,0.077955,70408.0,70402.0,0.66261648]
[1730167505572,0.014,70411.0,70402.0,0.66261648]
[1730167505573,0.014,70411.0,70407.0,0.5657744]
[1730167505785,0.014,70411.0,70408.0,0.079]
[1730167505970,0.00213133,70416.0,70408.0,0.93351968]
[1730167506273,0.3608,70437.0,70415.0,0.45809262]
[1730167506476,0.3608,70437.0,70426.0,0.3608]
[1730167506680,0.3608,70437.0,70429.0,0.08338292]
[1730167506977,0.063934,70430.0,70429.0,0.08338292]
[1730167507877,0.063937,70427.0,70426.0,0.3608]
[1730167508274,0.014,70437.0,70426.0,0.99924338]
[1730167508577,0.063929,70436.0,70435.0,0.5657744]
[1730167508967,0.063929,70436.0,70435.0,0.77825778]
[1730167509965,0.063929,70436.0,70435.0,0.57328338]
[1730167510167,0.063929,70436.0,70435.0,0.57428338]
[1730167510465,0.067929,70436.0,70435.0,0.05755942]
[1730167510669,0.067929,70436.0,70435.0,0.002]
[1730167510870,0.063932,70433.0,70432.0,0.05555942]
[1730167511075,0.2049744,70436.0,70431.0,0.05555942]
[1730167511076,0.063932,70432.0,70431.0,0.05555942]
[1730167511278,0.063931,70434.0,70433.0,0.21208927]
[1730167511575,0.063931,70434.0,70431.0,0.21208927]
[1730167511877,0.063931,70434.0,70427.0,0.26764869]
[1730167512186,0.063931,70434.0,70402.0,0.09729262]
[1730167512187,0.5657744,70430.0,70425.0,0.05555942]
[1730167512384,0.5657744,70430.0,70417.0,0.3608]
[1730167512385,0.063942,70422.0,70421.0,0.05555942]
[1730167512683,0.19780797,70422.0,70416.0,0.21218842]
[1730167512867,0.19780797,70422.0,70411.0,0.05768967]
[1730167513068,0.063951,70412.0,70411.0,0.00213025]
[1730167513274,0.063951,70412.0,70411.0,0.41849164]
[1730167513476,0.063951,70412.0,70411.0,0.63022358]
[1730167513877,0.51632,70430.0,70411.0,1.05630358]
[1730167513878,0.3616,70430.0,70411.0,1.05630358]
[1730167514067,0.005,70422.0,70420.0,0.3608]
[1730167514268,0.005,70422.0,70421.0,0.2049744]
[1730167514468,0.005,70422.0,70421.0,0.41696545]
[1730167514675,0.063939,70425.0,70421.0,0.41696545]
[1730167514676,0.02838642,70425.0,70421.0,0.41696545]
[1730167515177,0.063939,70425.0,70421.0,0.41696545]
[1730167515570,0.06394,70424.0,70422.0,0.3608]
[1730167515775,0.06393,70435.0,70422.0,0.3608]
[1730167515976,0.063935,70429.0,70428.0,0.3608]
[1730167517580,0.001,70429.0,70428.0,0.5758994]
[1730167517780,0.001,70429.0,70428.0,0.7808738]
[1730167517966,0.001,70429.0,70428.0,0.7798738]
[1730167517967,0.063935,70429.0,70428.0,0.7798738]
[1730167518470,0.063935,70429.0,70428.0,0.7818738]
[1730167518471,0.073935,70429.0,70428.0,0.7818738]
[1730167518676,0.01,70429.0,70428.0,0.7818738]
[1730167519467,0.01,70429.0,70428.0,1.2078338]
[1730167519670,0.063929,70436.0,70428.0,1.2068338]
[1730167519885,0.063929,70436.0,70435.0,0.3608]
[1730167520183,0.063929,70436.0,70435.0,0.57367777]
[1730167520686,0.3608,70447.0,70435.0,0.57367777]
[1730167520687,0.0765,70452.0,70435.0,0.57367777]
[1730167520980,0.1424,70490.0,70435.0,0.57367777]
[1730167520981,0.063897,70472.0,70444.0,0.5657744]
[1730167521182,0.063898,70471.0,70457.0,0.5657744]
[1730167521388,0.3608,70460.0,70445.0,0.21350884]
[1730167521578,0.3608,70468.0,70442.0,0.20710388]
[1730167521579,0.2049744,70450.0,70442.0,0.00212948]
[1730167521879,0.06215826,70443.0,70442.0,0.00212948]
[1730167522875,0.16799669,70443.0,70442.0,0.00212948]
[1730167523484,0.16899669,70443.0,70442.0,0.00259408]
[1730167523677,0.16899669,70443.0,70429.0,0.3608]
[1730167523981,0.063934,70430.0,70429.0,0.3608]
[1730167524188,0.10754774,70430.0,70429.0,0.3608]
[1730167524371,0.12616596,70430.0,70429.0,0.57401498]
[1730167524872,0.12616596,70430.0,70429.0,0.57501498]
[1730167525674,0.1261752,70430.0,70429.0,0.57501498]
[1730167526174,0.0622412,70430.0,70429.0,0.77898938]
[1730167526370,0.0652412,70430.0,70429.0,0.77898938]
[1730167526573,0.0662412,70430.0,70429.0,0.77898938]
[1730167526776,0.04760882,70430.0,70429.0,0.77898938]
[1730167526974,0.0662412,70430.0,70429.0,0.77898938]
[1730167527174,0.001,70430.0,70429.0,0.77998938]
[1730167527371,0.001,70430.0,70429.0,1.20594938]
[1730167527580,0.003,70430.0,70429.0,0.99493709]
[1730167527770,0.15526115,70448.0,70429.0,0.99493709]
[1730167527771,0.15526115,70448.0,70429.0,1.8812682]
[1730167527972,0.15526115,70454.0,70447.0,0.7216]
[1730167528177,0.21917315,70454.0,70453.0,0.3608]
[1730167528376,0.10751011,70454.0,70453.0,0.3608]
[1730167528588,0.10751011,70454.0,70453.0,0.57460341]
[1730167529778,0.063912,70454.0,70453.0,0.57460341]
[1730167529980,0.063912,70454.0,70453.0,0.57560341]
[1730167530185,0.063907,70460.0,70453.0,0.57560341]
[1730167530395,0.063907,70460.0,70459.0,0.3608]
[1730167531296,0.2049744,70480.0,70459.0,0.57411854]
[1730167531587,0.06603276,70465.0,70463.0,0.2049744]
[1730167531784,0.00212976,70465.0,70463.0,0.2049744]
[1730167531985,0.063901,70468.0,70464.0,0.63907854]
[1730167532177,0.0788,70480.0,70467.0,0.3608]
[1730167532580,0.0788,70480.0,70468.0,0.21150777]
[1730167532884,0.063897,70471.0,70468.0,0.21150777]
[1730167533084,0.0788,70480.0,70468.0,0.21150777]
[1730167533387,0.056799,70469.0,70468.0,0.21150777]
[1730167533789,0.056799,70469.0,70468.0,0.21250777]
[1730167534289,0.056795,70474.0,70468.0,0.21250777]
[1730167534492,0.056791,70479.0,70468.0,0.41748217]
[1730167534680,0.056795,70474.0,70468.0,0.41748217]
[1730167534995,0.003,70469.0,70468.0,0.41848217]
[1730167535178,0.003,70469.0,70468.0,0.41748217]
[1730167535381,0.059799,70469.0,70468.0,0.41848217]
[1730167535691,0.059799,70469.0,70468.0,0.21350777]
[1730167535892,0.003,70469.0,70468.0,0.41848217]
[1730167536390,0.056791,70479.0,70468.0,0.41748217]
[1730167536592,0.059791,70479.0,70478.0,0.3608]
[1730167536900,0.059791,70479.0,70474.0,0.2049744]
[1730167536901,0.056794,70476.0,70474.0,0.2049744]
[1730167537192,0.056794,70476.0,70475.0,0.21404186]
[1730167537799,0.21350209,70476.0,70475.0,0.05773784]
[1730167537986,0.18295115,70483.0,70475.0,1.29706057]
[1730167538185,0.41930844,70509.0,70475.0,1.29706057]
[1730167538186,0.056775,70499.0,70482.0,0.5657744]
[1730167538390,0.056778,70495.0,70494.0,0.3608]
[1730167538692,0.056778,70495.0,70494.0,0.57468546]
[1730167539499,0.18295115,70500.0,70494.0,0.57568546]
[1730167539500,0.056775,70499.0,70494.0,0.57568546]
[1730167539695,0.18295115,70500.0,70494.0,0.57568546]
[1730167539898,0.056775,70499.0,70497.0,0.2049744]
[1730167540193,0.00174144,70509.0,70498.0,0.95011964]
[1730167540387,0.00174144,70509.0,70508.0,0.5657744]
[1730167540590,0.05850844,70509.0,70508.0,0.5657744]
[1730167540792,0.05850844,70509.0,70508.0,0.77863916]
[1730167541100,0.05850844,70509.0,70508.0,0.57366476]
[1730167541289,0.05850844,70509.0,70508.0,0.21286476]
[1730167541696,0.05850844,70509.0,70503.0,0.2049744]
[1730167541697,0.00174144,70509.0,70504.0,0.21149304]
[1730167541887,0.00174144,70509.0,70503.0,0.2049744]
[1730167542088,0.00174144,70509.0,70508.0,0.2049744]
[1730167542287,0.05850844,70509.0,70508.0,0.2049744]
[1730167542499,0.05850844,70509.0,70508.0,0.41818748]
[1730167542698,0.05850844,70509.0,70508.0,0.41918748]
[1730167542999,0.00174144,70509.0,70508.0,0.84466748]
[1730167543896,0.00474144,70509.0,70508.0,1.20646748]
[1730167544102,0.13726987,70523.0,70508.0,1.20646748]
[1730167544103,0.3608,70547.0,70508.0,1.14965993]
[1730167544292,0.28182966,70536.0,70535.0,0.3608]
[1730167544492,0.056751,70529.0,70526.0,0.3608]
[1730167544699,0.28182966,70536.0,70535.0,0.21392513]
[1730167545000,0.22508466,70536.0,70535.0,0.9910944]
[1730167545195,0.056741,70542.0,70535.0,1.50386746]
[1730167545496,0.06087143,70545.0,70544.0,0.2049744]
[1730167545902,0.06087143,70545.0,70544.0,0.41774746]
[1730167546401,0.42167143,70545.0,70544.0,0.21277306]
[1730167546703,0.056745,70536.0,70535.0,0.001]
[1730167547100,0.056745,70536.0,70535.0,0.21480027]
[1730167547694,0.056745,70536.0,70535.0,0.21380027]
[1730167548001,0.3608,70539.0,70530.0,0.21363559]
[1730167548192,0.056749,70531.0,70530.0,0.21363559]
[1730167548393,0.056754,70525.0,70523.0,0.2049744]
[1730167548900,0.056754,70525.0,70524.0,0.21180261]
[1730167550293,0.056754,70525.0,70524.0,0.21280261]
[1730167551091,0.056754,70525.0,70524.0,0.21380261]
[1730167551306,0.056754,70525.0,70515.0,0.2049744]
[1730167551497,0.3608,70526.0,70504.0,0.3608]
[1730167551498,0.056764,70513.0,70512.0,0.38143001]
[1730167551994,0.056766,70510.0,70497.0,0.3608]
[1730167552192,0.417566,70510.0,70497.0,0.3608]
[1730167552504,0.056776,70498.0,70497.0,0.3608]
[1730167552704,0.056784,70488.0,70486.0,0.5657744]
[1730167553006,0.056784,70488.0,70486.0,0.5664944]
[1730167553202,0.3608,70501.0,70487.0,0.26744476]
[1730167553502,0.056779,70494.0,70493.0,0.2049744]
[1730167554007,0.056779,70494.0,70493.0,0.41690152]
[1730167554304,0.056779,70494.0,70493.0,0.77770152]
[1730167555001,0.062779,70494.0,70493.0,0.77870152]
[1730167555400,0.16854074,70494.0,70493.0,0.77870152]
[1730167555900,0.21211534,70494.0,70493.0,0.21292712]
[1730167556105,0.21811611,70494.0,70493.0,0.002]
[1730167556300,0.57891611,70494.0,70493.0,0.002]
[1730167556500,0.57891611,70494.0,70482.0,0.00212762]
[1730167556501,0.056788,70483.0,70482.0,0.00212762]
[1730167556704,0.09155245,70483.0,70482.0,0.00212762]
[1730167556901,0.1351347,70483.0,70482.0,0.21349642]
[1730167557212,0.1351347,70483.0,70482.0,0.00212762]
[1730167557399,0.1860632,70483.0,70482.0,0.00212762]
[1730167557908,0.2000632,70483.0,70482.0,0.00212762]
[1730167558292,0.1432752,70483.0,70472.0,0.2049744]
[1730167558498,0.51583655,70475.0,70465.0,0.3608]
[1730167558708,0.056801,70466.0,70465.0,0.3608]
[1730167558897,0.1351477,70466.0,70465.0,0.3608]
[1730167559203,0.1351477,70466.0,70465.0,0.57235504]
[1730167559598,0.1351477,70466.0,70465.0,0.57225504]
[1730167559793,0.21192144,70466.0,70465.0,0.57225504]
[1730167559999,0.13517133,70466.0,70465.0,0.57225504]
[1730167560196,0.13617133,70466.0,70465.0,0.57225504]
[1730167560400,0.29129177,70466.0,70465.0,0.57225504]
[1730167560593,0.14104131,70470.0,70465.0,0.99801504]
[1730167560897,0.056782,70490.0,70470.0,0.056798]
[1730167561097,0.05678,70493.0,70486.0,0.08336039]
[1730167561293,0.056784,70488.0,70487.0,0.10821893]
[1730167561795,0.4256,70487.0,70478.0,0.08336039]
[1730167561998,0.3608,70479.0,70474.0,0.08336039]
[1730167562199,0.056796,70473.0,70472.0,0.08336039]
[1730167562394,0.056797,70471.0,70470.0,0.08336039]
[1730167562601,0.056798,70470.0,70469.0,0.44416039]
[1730167562808,0.013,70488.0,70470.0,0.21350894]
[1730167563008,0.013,70488.0,70487.0,0.2049744]
[1730167563309,0.013,70488.0,70487.0,0.2617584]
[1730167563620,0.013,70488.0,70487.0,1.02940552]
[1730167564308,0.056773,70501.0,70492.0,0.05678]
[1730167564512,0.056774,70501.0,70500.0,0.2049744]
[1730167566004,0.056774,70501.0,70500.0,0.41717379]
[1730167566600,0.065774,70501.0,70500.0,0.41817379]
[1730167566802,0.065774,70501.0,70500.0,0.41917379]
[1730167566803,0.076774,70501.0,70500.0,0.41917379]
[1730167567811,0.14776611,70501.0,70500.0,0.41917379]
[1730167568611,0.14776611,70501.0,70500.0,0.47594779]
[1730167568612,0.12575353,70501.0,70500.0,0.47594779]
[1730167568802,0.14104131,70510.0,70506.0,0.056769]
[1730167569004,0.14104131,70510.0,70509.0,0.3608]
[1730167569005,0.056766,70510.0,70509.0,0.3608]
[1730167569209,0.056766,70510.0,70500.0,0.36888717]
[1730167569210,0.2485386,70510.0,70507.0,0.21394945]
[1730167569414,0.2049744,70515.0,70505.0,0.3608]
[1730167569600,0.056769,70506.0,70505.0,0.3608]
[1730167570005,0.022,70510.0,70505.0,0.77972385]
[1730167570506,0.011,70510.0,70505.0,0.77972385]
[1730167570812,0.011,70510.0,70505.0,0.78072385]
[1730167571016,0.011,70510.0,70509.0,0.056767]
[1730167571309,0.011,70510.0,70509.0,0.21300512]
[1730167571511,0.056763,70514.0,70509.0,0.21300512]
[1730167571714,0.04356204,70513.0,70508.0,0.21300512]
[1730167571917,0.056765,70511.0,70508.0,0.21300512]
[1730167572119,0.04356204,70510.0,70507.0,0.3608]
[1730167572420,0.056767,70509.0,70508.0,0.21359016]
[1730167573212,0.30530607,70509.0,70508.0,0.21359016]
[1730167573419,0.30530956,70509.0,70508.0,0.21359016]
[1730167573710,0.056773,70501.0,70500.0,0.3608]
[1730167573910,0.056778,70495.0,70494.0,0.36292772]
[1730167574210,0.2617524,70495.0,70494.0,0.21517332]
[1730167574420,0.056778,70495.0,70494.0,0.21517332]
[1730167575412,0.10035326,70495.0,70494.0,0.21517332]
[1730167575805,0.056778,70495.0,70494.0,0.21517332]
[1730167576205,0.056778,70495.0,70494.0,0.22617332]
[1730167576613,0.056778,70495.0,70494.0,0.21517332]
[1730167576811,0.056778,70495.0,70494.0,0.21617332]
[1730167577115,0.3608,70505.0,70494.0,0.42114772]
[1730167577413,0.056773,70501.0,70500.0,0.2049744]
[1730167577812,0.3608,70505.0,70500.0,0.4175201]
[1730167578210,0.056773,70501.0,70500.0,0.4175201]
[1730167578802,0.057773,70501.0,70500.0,0.4175201]
[1730167579407,0.001,70501.0,70500.0,0.4175201]
[1730167579611,0.05677,70505.0,70500.0,0.4205201]
[1730167579916,0.0844,70519.0,70504.0,0.5657744]
[1730167580218,0.3608,70522.0,70504.0,0.417571]
[1730167580219,0.005,70505.0,70504.0,0.417571]
[1730167580406,0.005,70505.0,70504.0,0.778371]
[1730167580714,0.056765,70511.0,70504.0,1.41740935]
[1730167580915,0.056765,70511.0,70510.0,0.3608]
[1730167581418,0.056765,70511.0,70510.0,0.57430596]
[1730167582109,0.056765,70511.0,70510.0,0.21350596]
[1730167582316,0.0841834,70511.0,70510.0,0.21350596]
[1730167582518,0.0901834,70511.0,70510.0,0.21450596]
[1730167582814,0.21942383,70511.0,70510.0,0.21450596]
[1730167583022,0.30672383,70511.0,70510.0,0.21450596]
[1730167583222,0.31172383,70511.0,70510.0,0.21450596]
[1730167583521,0.26081315,70511.0,70510.0,0.21450596]
[1730167583712,0.39709167,70511.0,70510.0,0.21450596]
[1730167583911,0.40209167,70511.0,70510.0,0.21550596]
[1730167584113,0.26081315,70511.0,70510.0,0.21550596]
[1730167584316,0.39509167,70511.0,70510.0,0.21350596]
[1730167584518,0.25881315,70511.0,70510.0,0.21350596]
[1730167585219,0.26081315,70511.0,70510.0,0.21450596]
[1730167585419,0.17351315,70511.0,70510.0,0.21450596]
[1730167585609,0.25058935,70511.0,70510.0,0.41948036]
[1730167585813,0.32891182,70511.0,70510.0,0.41948036]